fUSD/lending_fUSD_20260305
["ID","MTS","AMOUNT","RATE_DAILY","PERIOD"]
[407698195,1772690846955,-2628.918,0.00038287,51]
[407698196,1772690846980,-168.642,0.00038287,51]
[407698197,1772690847008,-227.95781022,0.0004024,30]
[407698198,1772690847034,-402.491938,0.00041096,120]
[407698199,1772690847059,-402.491938,0.00041096,120]
[407698200,1772690847084,-402.491938,0.00041096,120]
[407698201,1772690847108,-402.491938,0.00041096,120]
[407698202,1772690847133,-402.491938,0.00041096,120]
[407698203,1772690847158,-402.491938,0.00041096,120]
[407698204,1772690847182,-402.491938,0.00041096,120]
[407698205,1772690847207,-402.491938,0.00041096,120]
[407698206,1772690847234,-402.491938,0.00041096,120]
[407698207,1772690847260,-402.491938,0.00041096,120]
[407698208,1772690847284,-402.491938,0.00041096,120]
[407698209,1772690847310,-402.491938,0.00041096,120]
[407698210,1772690847335,-402.491938,0.00041096,120]
[407698211,1772690847360,-402.491938,0.00041096,120]
[407698212,1772690847386,-402.491938,0.00041096,120]
[407698213,1772690847411,-402.491938,0.00041096,120]
[407698214,1772690847436,-1140.156267,0.00041096,120]
[407698215,1772690847464,-1140.156267,0.00041096,120]
[407698216,1772690847491,-1140.156267,0.00041096,120]
[407698217,1772690847758,-1140.156267,0.00041096,120]
[407698218,1772690847784,-1140.156267,0.00041096,120]
[407698219,1772690847812,-1140.156267,0.00041096,120]
[407698220,1772690847836,-1140.156267,0.00041096,120]
[407698221,1772690847859,-1140.156267,0.00041096,120]
[407698222,1772690847884,-1140.156267,0.00041096,120]
[407698223,1772690847908,-1140.156267,0.00041096,120]
[407698224,1772690847934,-1140.156267,0.00041096,120]
[407698225,1772690847959,-1140.156267,0.00041096,120]
[407698226,1772690847984,-1140.156267,0.00041096,120]
[407698227,1772690848007,-1140.156267,0.00041096,120]
[407698228,1772690848034,-1140.156267,0.00041096,120]
[407698229,1772690848058,-1140.156267,0.00041096,120]
[407698230,1772690848083,-5870.0,0.00041681,60]
[407698231,1772690848107,-339.64707548,0.0004177,31]
[407698232,1772690848132,-150.33472363,0.0004177,31]
[407698233,1772690848158,-500.0,0.0004177,31]
[407698234,1772690848184,-169.16797445,0.0004177,31]
[407698235,1772690848209,-344.07218193,0.0004177,31]
[407698236,1772690848233,-500.0,0.0004177,31]
[407698237,1772690848258,-402.491938,0.00041771,120]
[407698238,1772690848283,-402.491938,0.00041771,120]
[407698239,1772690848308,-402.491938,0.00041771,120]
[407698240,1772690848334,-402.491935,0.00041771,120]
[407698241,1772690848359,-1140.156267,0.00041771,120]
[407698242,1772690848384,-1140.156267,0.00041771,120]
[407698243,1772690848409,-1140.156267,0.00041771,120]
[407698244,1772690848435,-1140.156274,0.00041771,120]
[407698245,1772690848460,-151.0,0.00042019,120]
[407698246,1772690848491,-151.0,0.00042019,120]
[407698247,1772690848529,-161.35,0.000421,60]
[407698248,1772690848577,-180.09,0.00042761,120]
[407698249,1772690848605,-1496.0,0.00043,120]
[407698250,1772690848632,-264.68,0.00043027,120]
[407698251,1772690848657,-500.0,0.00043055,120]
[407698252,1772690848685,-500.0,0.00043055,120]
[407698253,1772690848712,-151.0,0.00043055,120]
[407698254,1772690848740,-5870.0,0.00043055,60]
[407698255,1772690848766,-3240.0,0.0004354,120]
[407698256,1772690848792,-151.0,0.00043836,120]
[407698257,1772690848819,-245.0,0.00043836,120]
[407698258,1772690848846,-5870.0,0.00044429,60]
[407698259,1772690848871,-500.0,0.00044617,120]
[407698260,1772690848896,-500.0,0.00044617,45]
[407698261,1772690848923,-500.0,0.00044617,120]
[407698262,1772690848952,-500.0,0.00044617,120]
[407698263,1772690848978,-500.0,0.00044617,120]
[407698264,1772690849004,-5000.0,0.00044857,120]
[407698265,1772690849030,-1500.0,0.00044877,120]
[407698266,1772690849055,-160.0,0.0004488,120]
[407698267,1772690849081,-500.0,0.00044907,120]
[407698268,1772690849108,-500.0,0.00044907,120]
[407698269,1772690849136,-1496.0,0.00045,120]
[407698270,1772690849162,-347.85181414,0.00045,30]
[407698271,1772690849192,-151.0,0.00045446,120]
[407698272,1772690849218,-153.5081,0.00045446,120]
[407698273,1772690849245,-3900.0,0.00045446,120]
[407698274,1772690849272,-3900.0,0.00045446,120]
[407698275,1772690849300,-3900.0,0.00045446,120]
[407698276,1772690849326,-3900.0,0.00045446,120]
[407698277,1772690849352,-211.839129,0.00045446,120]
[407698278,1772690849378,-394.11832102,0.00045499,30]
[407698279,1772690849405,-3000000.0,0.000455,120]
[407698280,1772690849435,-151.0,0.000455,120]
[407698281,1772690849460,-299.0,0.000455,120]
[407698282,1772690849488,-3900.0,0.000455,120]
[407698283,1772690849514,-3900.0,0.000455,120]
[407698284,1772690849540,-3900.0,0.000455,120]
[407698285,1772690849569,-3900.0,0.000455,120]
[407698286,1772690849595,-5870.0,0.00045804,60]
[407698287,1772690849620,-709.277227,0.000459,120]
[407698288,1772690849646,-709.277227,0.000459,120]
[407698289,1772690849676,-709.277227,0.000459,120]
[407698290,1772690849702,-709.277227,0.000459,120]
[407698291,1772690849727,-154.499139,0.000459,120]
[407698292,1772690849752,-150.0,0.000459,30]
[407698293,1772690849778,-162.06537809,0.000459,30]
[407698294,1772690849803,-163.84481457,0.000459,30]
[407698295,1772690849828,-150.67954055,0.000459,30]
[407698296,1772690849852,-184.911009,0.000459,30]
[407698297,1772690849878,-155.99610819,0.000459,30]
[407698298,1772690849904,-256.77431483,0.000459,30]
[407698299,1772690849928,-150.0,0.000459,30]
[407698300,1772690849953,-150.0,0.000459,30]
[407698301,1772690849978,-150.0,0.000459,30]
[407698302,1772690850002,-500.0,0.00045936,120]
[407698303,1772690850026,-500.0,0.00045936,120]
[407698304,1772690850052,-500.0,0.00045936,120]
[407698305,1772690850080,-500.0,0.00045936,120]
[407698306,1772690850106,-500.0,0.00045936,120]
[407698307,1772690850131,-500.0,0.00045936,120]
[407698308,1772690850156,-500.0,0.00045936,120]
[407698309,1772690850180,-500.0,0.00045936,120]
[407698310,1772690850207,-500.0,0.00045936,30]
[407698311,1772690850232,-500.0,0.00045936,30]
[407698312,1772690850258,-709.277227,0.00045937,120]
[407698313,1772690850283,-709.277227,0.00045937,120]
[407698314,1772690850307,-709.277227,0.00045937,120]
[407698315,1772690850332,-709.277227,0.00045937,120]
[407698316,1772690850359,-709.277227,0.00045937,120]
[407698317,1772690850384,-709.277227,0.00045937,120]
[407698318,1772690850411,-709.277227,0.00045937,120]
[407698319,1772690850436,-709.277227,0.00045937,120]
[407698320,1772690850461,-709.277227,0.00045937,120]
[407698321,1772690850490,-709.277227,0.00045937,120]
[407698322,1772690850685,-709.277227,0.00045937,120]
[407698323,1772690850712,-709.277227,0.00045937,120]
[407698324,1772690850740,-151.0,0.00045937,120]
[407698325,1772690850768,-151.0,0.00045937,120]
[407698326,1772690850796,-151.0,0.00045937,120]
[407698327,1772690850823,-3900.0,0.00045937,120]
[407698328,1772690850849,-3900.0,0.00045937,120]
[407698329,1772690850876,-3900.0,0.00045937,120]
[407698330,1772690850903,-3900.0,0.00045937,120]
[407698331,1772690850929,-3900.0,0.00045937,120]
[407698332,1772690850955,-3900.0,0.00045937,120]
[407698333,1772690850982,-3900.0,0.00045937,120]
[407698334,1772690851013,-3900.0,0.00045937,120]
[407698335,1772690851039,-500.0,0.00045942,120]
[407698336,1772690851064,-500.0,0.00045942,120]
[407698337,1772690851089,-256.77431483,0.00045952,30]
[407698338,1772690851113,-500.0,0.00045999,45]
[407698339,1772690851138,-500.0,0.00045999,120]
[407698340,1772690851163,-500.0,0.00045999,120]
[407698341,1772690851187,-274.17470456,0.00045999,120]
[407698342,1772690851212,-500.0,0.00045999,120]
[407698343,1772690851237,-500.0,0.00045999,120]
[407698344,1772690851262,-500.0,0.00045999,120]
[407698345,1772690851285,-353.51305382,0.00045999,120]
[407698346,1772690851310,-500.0,0.00045999,30]
[407698347,1772690851334,-200009.99361106,0.00046,120]
[407698348,1772690851358,-200.0,0.00046,120]
[407698349,1772690851383,-709.277227,0.00046,120]
[407698350,1772690851407,-709.277227,0.00046,120]
[407698351,1772690851432,-709.277227,0.00046,120]
[407698352,1772690851455,-709.27722,0.00046,120]
[407698353,1772690851484,-3900.0,0.00046,120]
[407698354,1772690851510,-3900.0,0.00046,120]
[407698355,1772690851536,-3900.0,0.00046,120]
[407698356,1772690851564,-3900.0,0.00046,120]
[407698357,1772690851589,-3000.0,0.00046,30]
[407698358,1772690851613,-256.77431483,0.00046003,30]
[407698359,1772690851642,-150.0,0.00046038,30]
[407698360,1772690851667,-150.0,0.00046042,30]
[407698361,1772690851691,-256.77431483,0.00046055,30]
[407698362,1772690851716,-256.77431483,0.00046106,30]
[407698363,1772690851742,-256.77431483,0.00046158,30]
[407698364,1772690851768,-150.0,0.00046176,30]
[407698365,1772690851793,-150.0,0.00046183,30]
[407698366,1772690851822,-256.77431483,0.00046209,30]
[407698367,1772690851847,-256.77431483,0.00046261,30]
[407698368,1772690851876,-727.0,0.000463,30]
[407698369,1772690851901,-256.77431483,0.00046312,30]
[407698370,1772690851927,-150.0,0.00046314,30]
[407698371,1772690851952,-150.0,0.00046325,30]
[407698372,1772690851978,-256.77431483,0.00046364,30]
[407698373,1772690852003,-150.0,0.0004641,30]
[407698374,1772690852028,-256.77431483,0.00046415,30]
[407698375,1772690852055,-150.0,0.00046451,30]
[407698376,1772690852080,-264.68,0.00046452,120]
[407698377,1772690852105,-256.77431483,0.00046467,30]
[407698378,1772690852131,-150.0,0.00046467,30]
[407698379,1772690852154,-1301.86,0.00046491,30]
[407698380,1772690852179,-1301.86,0.00046491,30]
[407698381,1772690852206,-1301.86,0.00046491,30]
[407698382,1772690852232,-500.0,0.00046498,30]
[407698383,1772690852258,-500.0,0.00046499,45]
[407698384,1772690852283,-500.0,0.00046499,45]
[407698385,1772690852307,-500.0,0.00046499,120]
[407698386,1772690852332,-500.0,0.00046499,120]
[407698387,1772690852368,-500.0,0.00046499,120]
[407698388,1772690852395,-500.0,0.00046499,120]
[407698389,1772690852420,-500.0,0.00046499,120]
[407698390,1772690852446,-500.0,0.00046499,120]
[407698391,1772690852473,-500.0,0.00046499,120]
[407698392,1772690852498,-500.0,0.00046499,120]
[407698393,1772690852524,-999.0,0.00046499,120]
[407698394,1772690852551,-500.0,0.00046499,120]
[407698395,1772690852577,-500.0,0.00046499,120]
[407698396,1772690852603,-500.0,0.00046499,30]
[407698397,1772690852629,-500.0,0.00046499,30]
[407698398,1772690852654,-5000.00000004,0.000465,120]
[407698399,1772690852679,-454114.93747672,0.000465,30]
[407698400,1772690852705,-4194.09133408,0.000465,30]
[407698401,1772690852731,-236.935952,0.000465,120]
[407698402,1772690852756,-256.77431483,0.00046518,30]
[407698403,1772690852784,-256.77431483,0.0004657,30]
[407698404,1772690852809,-500.0,0.00046574,45]
[407698405,1772690852834,-500.0,0.00046574,45]
[407698406,1772690852858,-500.0,0.00046574,45]
[407698407,1772690852882,-500.0,0.00046574,45]
[407698408,1772690852906,-500.0,0.00046574,45]
[407698409,1772690852934,-500.0,0.00046574,120]
[407698410,1772690852959,-500.0,0.00046574,120]
[407698411,1772690852985,-500.0,0.00046574,120]
[407698412,1772690853014,-500.0,0.00046574,120]
[407698413,1772690853039,-500.0,0.00046574,120]
[407698414,1772690853065,-500.0,0.00046574,120]
[407698415,1772690853092,-500.0,0.00046574,120]
[407698416,1772690853125,-500.0,0.00046574,120]
[407698417,1772690853165,-500.0,0.00046574,120]
[407698418,1772690853191,-500.0,0.00046574,120]
[407698419,1772690853219,-500.0,0.00046574,120]
[407698420,1772690853246,-500.0,0.00046574,120]
[407698421,1772690853276,-500.0,0.00046574,120]
[407698422,1772690853303,-500.0,0.00046574,120]
[407698423,1772690853329,-500.0,0.00046574,120]
[407698424,1772690853356,-500.0,0.00046574,120]
[407698425,1772690853383,-500.0,0.00046574,120]
[407698426,1772690853607,-500.0,0.00046574,120]
[407698427,1772690853634,-500.0,0.00046574,120]
[407698428,1772690853661,-500.0,0.00046574,120]
[407698429,1772690853687,-500.0,0.00046574,120]
[407698430,1772690853713,-500.0,0.00046574,120]
[407698431,1772690853739,-500.0,0.00046574,30]
[407698432,1772690853765,-167.723415,0.00046575,120]
[407698433,1772690853791,-500.0,0.00046575,120]
[407698434,1772690853815,-500.0,0.00046575,120]
[407698435,1772690853841,-500.0,0.00046575,120]
[407698436,1772690853866,-500.0,0.00046575,120]
[407698437,1772690853889,-500.0,0.00046575,120]
[407698438,1772690853914,-500.0,0.00046575,120]
[407698439,1772690853939,-500.0,0.00046575,120]
[407698440,1772690853964,-173.07931678,0.00046575,120]
[407698441,1772690853988,-500.0,0.00046575,120]
[407698442,1772690854012,-568.58109246,0.00046575,120]
[407698443,1772690854038,-500.0,0.00046575,120]
[407698444,1772690854062,-260.73628441,0.00046575,120]
[407698445,1772690854086,-500.0,0.00046575,120]
[407698446,1772690854110,-500.0,0.00046575,120]
[407698447,1772690854134,-640.17520049,0.00046575,120]
[407698448,1772690854158,-500.0,0.00046575,120]
[407698449,1772690854184,-326.79835127,0.00046575,120]
[407698450,1772690854208,-535.0678676,0.00046575,120]
[407698451,1772690854234,-507.84355729,0.00046575,120]
[407698452,1772690854260,-500.0,0.00046575,120]
[407698453,1772690854285,-538.82231151,0.00046575,120]
[407698454,1772690854309,-500.0,0.00046575,120]
[407698455,1772690854335,-500.0,0.00046575,120]
[407698456,1772690854361,-551.19873211,0.00046575,120]
[407698457,1772690854386,-505.32546592,0.00046575,120]
[407698458,1772690854410,-500.0,0.00046575,120]
[407698459,1772690854435,-514.98226211,0.00046575,120]
[407698460,1772690854460,-508.88291462,0.00046575,30]
[407698461,1772690854488,-500.0,0.00046575,120]
[407698462,1772690854515,-500.0,0.00046575,120]
[407698463,1772690854541,-497.40413178,0.00046575,120]
[407698464,1772690854566,-505.49202013,0.00046575,120]
[407698465,1772690854591,-528.15145826,0.00046575,120]
[407698466,1772690854616,-570.68990044,0.00046575,120]
[407698467,1772690854641,-523.24540863,0.00046575,120]
[407698468,1772690854666,-500.0,0.00046575,120]
[407698469,1772690854692,-516.38350581,0.00046575,120]
[407698470,1772690854717,-423.36207367,0.00046575,120]
[407698471,1772690854741,-513.598294,0.00046575,120]
[407698472,1772690854766,-518.3278183,0.00046575,120]
[407698473,1772690854792,-515.90554871,0.00046575,120]
[407698474,1772690854817,-500.0,0.00046575,120]
[407698475,1772690854842,-424.46070134,0.00046575,120]
[407698476,1772690854866,-535.26192697,0.00046575,120]
[407698477,1772690854891,-500.0,0.00046575,120]
[407698478,1772690854917,-500.0,0.00046575,120]
[407698479,1772690854942,-500.0,0.00046575,120]
[407698480,1772690854967,-500.0,0.00046575,120]
[407698481,1772690854993,-505.56856292,0.00046575,120]
[407698482,1772690855018,-500.0,0.00046575,120]
[407698483,1772690855044,-500.0,0.00046575,120]
[407698484,1772690855069,-500.0,0.00046575,120]
[407698485,1772690855095,-500.0,0.00046575,120]
[407698486,1772690855120,-500.0,0.00046575,120]
[407698487,1772690855147,-500.0,0.00046575,120]
[407698488,1772690855174,-500.0,0.00046575,120]
[407698489,1772690855199,-500.0,0.00046575,120]
[407698490,1772690855226,-500.0,0.00046575,120]
[407698491,1772690855252,-500.0,0.00046575,120]
[407698492,1772690855277,-500.0,0.00046575,120]
[407698493,1772690855302,-500.0,0.00046575,120]
[407698494,1772690855327,-515.53553637,0.00046575,120]
[407698495,1772690855352,-500.0,0.00046575,120]
[407698496,1772690855377,-500.0,0.00046575,120]
[407698497,1772690855402,-500.0,0.00046575,120]
[407698498,1772690855429,-500.0,0.00046575,120]
[407698499,1772690855454,-500.0,0.00046575,120]
[407698500,1772690855480,-500.0,0.00046575,120]
[407698501,1772690855504,-500.0,0.00046575,120]
[407698502,1772690855530,-500.0,0.00046575,120]
[407698503,1772690855556,-500.0,0.00046575,120]
[407698504,1772690855580,-502.84217179,0.00046575,120]
[407698505,1772690855605,-500.0,0.00046575,120]
[407698506,1772690855630,-590.41201762,0.00046575,120]
[407698507,1772690855655,-330.0,0.00046575,30]
[407698508,1772690855680,-500.0,0.00046575,120]
[407698509,1772690855704,-500.0,0.00046575,120]
[407698510,1772690855728,-500.0,0.00046575,120]
[407698511,1772690855752,-500.0,0.00046575,120]
[407698512,1772690855778,-398.8511135,0.00046575,120]
[407698513,1772690855803,-500.0,0.00046575,120]
[407698514,1772690855828,-500.0,0.00046575,120]
[407698515,1772690855853,-500.0,0.00046575,120]
[407698516,1772690855878,-500.0,0.00046575,120]
[407698517,1772690855904,-500.0,0.00046575,120]
[407698518,1772690855929,-500.0,0.00046575,120]
[407698519,1772690855954,-500.0,0.00046575,120]
[407698520,1772690855979,-500.0,0.00046575,120]
[407698521,1772690856003,-500.0,0.00046575,90]
[407698522,1772690856028,-500.0,0.00046575,120]
[407698523,1772690856052,-196.68944446,0.00046575,120]
[407698524,1772690856077,-550.78795866,0.00046575,90]
[407698525,1772690856102,-500.0,0.00046575,120]
[407698526,1772690856126,-540.95208408,0.00046575,120]
[407698527,1772690856150,-500.0,0.00046575,120]
[407698528,1772690856175,-500.0,0.00046575,120]
[407698529,1772690856199,-500.0,0.00046575,120]
[407698530,1772690856223,-500.0,0.00046575,120]
[407698531,1772690856422,-505.78731732,0.00046575,120]
[407698532,1772690856454,-512.94752143,0.00046575,120]
[407698533,1772690856483,-500.0,0.00046575,120]
[407698534,1772690856509,-500.0,0.00046575,120]
[407698535,1772690856535,-500.0,0.00046575,120]
[407698536,1772690856565,-500.0,0.00046575,120]
[407698537,1772690856589,-500.0,0.00046575,120]
[407698538,1772690856613,-500.0,0.00046575,120]
[407698539,1772690856638,-500.0,0.00046575,120]
[407698540,1772690856663,-500.0,0.00046575,120]
[407698541,1772690856687,-500.0,0.00046575,120]
[407698542,1772690856712,-500.0,0.00046575,120]
[407698543,1772690856735,-199.408988,0.00046575,120]
[407698544,1772690856760,-500.0,0.00046575,120]
[407698545,1772690856784,-500.0,0.00046575,120]
[407698546,1772690856808,-500.0,0.00046575,120]
[407698547,1772690856831,-500.0,0.00046575,120]
[407698548,1772690856855,-500.0,0.00046575,120]
[407698549,1772690856880,-500.0,0.00046575,120]
[407698550,1772690856905,-504.15480801,0.00046575,120]
[407698551,1772690856928,-500.0,0.00046575,120]
[407698552,1772690856952,-500.9565902,0.00046575,120]
[407698553,1772690856977,-506.52024931,0.00046575,120]
[407698554,1772690857002,-500.0,0.00046575,120]
[407698555,1772690857027,-500.0,0.00046575,120]
[407698556,1772690857052,-500.0,0.00046575,120]
[407698557,1772690857076,-507.30485877,0.00046575,120]
[407698558,1772690857102,-500.0,0.00046575,120]
[407698559,1772690857127,-497.89554429,0.00046575,120]
[407698560,1772690857152,-500.0,0.00046575,120]
[407698561,1772690857176,-584.65940775,0.00046575,120]
[407698562,1772690857201,-500.0,0.00046575,120]
[407698563,1772690857225,-500.0,0.00046575,120]
[407698564,1772690857250,-500.0,0.00046575,120]
[407698565,1772690857274,-558.29043538,0.00046575,120]
[407698566,1772690857298,-500.0,0.00046575,120]
[407698567,1772690857323,-500.0,0.00046575,120]
[407698568,1772690857347,-500.0,0.00046575,120]
[407698569,1772690857372,-500.0,0.00046575,120]
[407698570,1772690857396,-500.0,0.00046575,120]
[407698571,1772690857420,-500.0,0.00046575,120]
[407698572,1772690857445,-500.0,0.00046575,120]
[407698573,1772690857469,-500.0,0.00046575,120]
[407698574,1772690857498,-500.0,0.00046575,120]
[407698575,1772690857523,-500.0,0.00046575,120]
[407698576,1772690857551,-500.0,0.00046575,120]
[407698577,1772690857576,-500.0,0.00046575,120]
[407698578,1772690857599,-500.0,0.00046575,120]
[407698579,1772690857624,-500.0,0.00046575,120]
[407698580,1772690857648,-500.0,0.00046575,120]
[407698581,1772690857673,-398.06822087,0.00046575,120]
[407698582,1772690857698,-500.0,0.00046575,120]
[407698583,1772690857723,-500.0,0.00046575,120]
[407698584,1772690857747,-185.74640352,0.00046575,120]
[407698585,1772690857772,-500.0,0.00046575,120]
[407698586,1772690857796,-607.06694522,0.00046575,120]
[407698587,1772690857820,-500.0,0.00046575,120]
[407698588,1772690857843,-500.0,0.00046575,120]
[407698589,1772690857867,-500.0,0.00046575,120]
[407698590,1772690857891,-500.0,0.00046575,120]
[407698591,1772690857916,-500.0,0.00046575,120]
[407698592,1772690857944,-500.0,0.00046575,120]
[407698593,1772690857968,-500.0,0.00046575,120]
[407698594,1772690857994,-500.0,0.00046575,120]
[407698595,1772690858019,-500.0,0.00046575,120]
[407698596,1772690858044,-500.0,0.00046575,120]
[407698597,1772690858070,-500.0,0.00046575,120]
[407698598,1772690858096,-500.0,0.00046575,120]
[407698599,1772690858122,-500.0,0.00046575,120]
[407698600,1772690858148,-500.0,0.00046575,120]
[407698601,1772690858173,-500.0,0.00046575,120]
[407698602,1772690858203,-500.0,0.00046575,120]
[407698603,1772690858228,-500.0,0.00046575,120]
[407698604,1772690858253,-509.44417202,0.00046575,120]
[407698605,1772690858278,-500.0,0.00046575,120]
[407698606,1772690858304,-197.01227253,0.00046575,120]
[407698607,1772690858330,-500.0,0.00046575,120]
[407698608,1772690858355,-500.0,0.00046575,120]
[407698609,1772690858380,-500.0,0.00046575,120]
[407698610,1772690858405,-500.0,0.00046575,120]
[407698611,1772690858430,-500.0,0.00046575,120]
[407698612,1772690858458,-575.67933742,0.00046575,120]
[407698613,1772690858484,-522.12590753,0.00046575,120]
[407698614,1772690858508,-500.0,0.00046575,120]
[407698615,1772690858534,-500.0,0.00046575,120]
[407698616,1772690858560,-500.0,0.00046575,120]
[407698617,1772690858585,-574.2922136,0.00046575,120]
[407698618,1772690858610,-500.0,0.00046575,120]
[407698619,1772690858636,-500.0,0.00046575,120]
[407698620,1772690858661,-702.34,0.00046575,120]
[407698621,1772690858686,-504.82293819,0.00046575,120]
[407698622,1772690858712,-702.34,0.00046575,120]
[407698623,1772690858736,-702.34,0.00046575,120]
[407698624,1772690858761,-702.34,0.00046575,120]
[407698625,1772690858787,-702.34,0.00046575,120]
[407698626,1772690858812,-702.34,0.00046575,120]
[407698627,1772690858837,-702.34,0.00046575,120]
[407698628,1772690858861,-702.34,0.00046575,120]
[407698629,1772690858887,-702.34,0.00046575,120]
[407698630,1772690858919,-500.0,0.00046575,120]
[407698631,1772690858949,-500.0,0.00046575,120]
[407698632,1772690858975,-500.0,0.00046575,120]
[407698633,1772690859000,-500.0,0.00046575,120]
[407698634,1772690859027,-500.0,0.00046575,120]
[407698635,1772690859055,-500.0,0.00046575,120]
[407698636,1772690859285,-500.0,0.00046575,120]
[407698637,1772690859311,-500.0,0.00046575,120]
[407698638,1772690859337,-500.0,0.00046575,120]
[407698639,1772690859362,-500.0,0.00046575,120]
[407698640,1772690859387,-500.0,0.00046575,120]
[407698641,1772690859412,-500.0,0.00046575,120]
[407698642,1772690859436,-500.0,0.00046575,120]
[407698643,1772690859462,-500.0,0.00046575,120]
[407698644,1772690859497,-500.0,0.00046575,120]
[407698645,1772690859523,-574.30881631,0.00046575,120]
[407698646,1772690859552,-500.0,0.00046575,120]
[407698647,1772690859578,-500.0,0.00046575,120]
[407698648,1772690859602,-500.0,0.00046575,120]
[407698649,1772690859628,-500.0,0.00046575,120]
[407698650,1772690859654,-500.0,0.00046575,120]
[407698651,1772690859679,-500.0,0.00046575,120]
[407698652,1772690859704,-500.0,0.00046575,120]
[407698653,1772690859729,-500.0,0.00046575,120]
[407698654,1772690859754,-500.0,0.00046575,120]
[407698655,1772690859779,-500.0,0.00046575,120]
[407698656,1772690859805,-500.0,0.00046575,120]
[407698657,1772690859831,-500.0,0.00046575,120]
[407698658,1772690859858,-504.75694,0.00046575,120]
[407698659,1772690859886,-500.0,0.00046575,120]
[407698660,1772690859912,-500.0,0.00046575,120]
[407698661,1772690859938,-500.0,0.00046575,120]
[407698662,1772690859963,-500.0,0.00046575,120]
[407698663,1772690859989,-500.0,0.00046575,120]
[407698664,1772690860014,-500.0,0.00046575,120]
[407698665,1772690860038,-500.0,0.00046575,120]
[407698666,1772690860065,-500.0,0.00046575,120]
[407698667,1772690860093,-500.0,0.00046575,120]
[407698668,1772690860119,-500.0,0.00046575,120]
[407698669,1772690860145,-503.29879923,0.00046575,30]
[407698670,1772690860170,-507.40472371,0.00046575,120]
[407698671,1772690860195,-500.0,0.00046575,120]
[407698672,1772690860221,-500.0,0.00046575,120]
[407698673,1772690860249,-500.0,0.00046575,120]
[407698674,1772690860285,-500.0,0.00046575,120]
[407698675,1772690860311,-500.0,0.00046575,120]
[407698676,1772690860339,-340.86108087,0.00046575,120]
[407698677,1772690860383,-504.6360546,0.00046575,120]
[407698678,1772690860410,-500.0,0.00046575,120]
[407698679,1772690860435,-500.0,0.00046575,120]
[407698680,1772690860460,-574.96670628,0.00046575,120]
[407698681,1772690860486,-500.0,0.00046575,120]
[407698682,1772690860511,-500.0,0.00046575,120]
[407698683,1772690860537,-500.0,0.00046575,120]
[407698684,1772690860562,-500.0,0.00046575,120]
[407698685,1772690860588,-497.16097315,0.00046575,120]
[407698686,1772690860613,-453.96401782,0.00046575,120]
[407698687,1772690860639,-500.0,0.00046575,120]
[407698688,1772690860664,-500.0,0.00046575,120]
[407698689,1772690860691,-500.0,0.00046575,120]
[407698690,1772690860717,-513.69030475,0.00046575,120]
[407698691,1772690860742,-500.0,0.00046575,120]
[407698692,1772690860769,-500.0,0.00046575,120]
[407698693,1772690860794,-617.0258517,0.00046575,120]
[407698694,1772690860821,-502.07500569,0.00046575,120]